fUSD/lending_fUSD_20240617
["ID","MTS","AMOUNT","RATE_DAILY","PERIOD"]
[329714714,1718598634099,-2339.46926962,0.00013093,2]
[329714715,1718598634113,-155.0,0.00013094,2]
[329714716,1718598634126,-193.34886011,0.00013094,2]
[329714717,1718598634137,-258.123,0.00013095,2]
[329714718,1718598634149,-4450.24576652,0.0001316,2]
[329714719,1718598634164,-775.35805116,0.00013688,2]
[329714720,1718598634181,-230.39540485,0.00013699,2]
[329714721,1718598634193,-420.0,0.00014356,2]
[329714722,1718598634212,-1808.63946267,0.000165,2]
[329714723,1718598634242,-339.48,0.00016519,2]
[329714724,1718598634255,-300.0,0.00017155,2]
[329714725,1718598634294,-8536.13802697,0.00017259,2]
[329714726,1718598634328,-1935.28,0.00017903,2]
[329714727,1718598634341,-1153.35,0.00017916,2]
[329714728,1718598634366,-2029.4,0.00017981,2]
[329714729,1718598634410,-250.0,0.00017997,2]
[329714730,1718598634423,-650.39195393,0.00018027,2]
[329714731,1718598634440,-165.79,0.00018028,2]
[329714732,1718598634475,-2747.75204214,0.00018031,2]
[329714733,1718598634497,-378.73,0.00018031,2]
[329714734,1718598634559,-5761.97270198,0.00018031,2]
[329714735,1718598634574,-2628.90713172,0.00018031,2]
[329714736,1718598634673,-278.60878409,0.00018031,2]
[329714737,1718598634690,-1115.8023317,0.00018031,2]
[329714738,1718598634704,-336.0934182,0.00018031,2]
[329714739,1718598634734,-817.26918962,0.00018031,2]
[329714740,1718598634764,-2333.50701761,0.00018031,2]
[329714741,1718598634793,-2122.16738294,0.00018031,2]
[329714742,1718598634805,-85.23664785,0.00018055,2]
[329714743,1718598634834,-236.64335215,0.00018055,2]
[329714744,1718598634847,-200.0,0.00018113,2]
[329714745,1718598634864,-200.0,0.00018149,2]
[329714746,1718598634883,-688.50188785,0.00018208,2]
[329714747,1718598635332,-499.27811215,0.00018208,2]
[329714748,1718598635346,-250.0,0.00018266,2]
[329714749,1718598635368,-2049.48,0.0001827,2]
[329714750,1718598635392,-700.26565711,0.00018413,2]
[329714751,1718598635416,-603.38328281,0.00018413,2]
[329714752,1718598635487,-155.0,0.00013088,2]
[329714753,1718598635499,-1030.07649312,0.00018413,2]
[329714754,1718598635526,-280.85203042,0.00018413,2]
[329714755,1718598635582,-21285.42253654,0.00018413,2]
[329714756,1718598635613,-150.0,0.00018413,2]
[329714757,1718598635638,-366.43,0.00018447,2]
[329714758,1718598635649,-480.16,0.00018584,2]
[329714759,1718598635668,-406.28,0.00018633,2]
[329714760,1718598635682,-163.23,0.00018635,2]
[329714761,1718598635696,-176.49,0.00018672,2]
[329714762,1718598635714,-163.23,0.00018757,2]
[329714763,1718598635728,-339.48,0.00018783,2]
[329714764,1718598635755,-163.23,0.00018878,2]
[329714765,1718598635812,-1000.0,0.00018958,2]
[329714766,1718598635848,-163.23,0.00018999,2]
[329714767,1718598635912,-172.36,0.00019093,2]
[329714768,1718598635931,-163.23,0.00019121,2]
[329714769,1718598635952,-163.23,0.00019242,2]
[329714770,1718598635975,-163.23,0.00019363,2]
[329714771,1718598636000,-403.52,0.00019472,2]
[329714772,1718598636011,-163.23,0.00019485,2]
[329714773,1718598636024,-406.28,0.00019564,2]
[329714774,1718598636072,-163.23,0.00019606,2]
[329714775,1718598636090,-173.97,0.0001971,2]
[329714777,1718598636113,-155.0,0.0002,2]
[329714779,1718598636127,-155.0,0.0002,2]
[329714781,1718598636139,-187.8134191,0.0002,2]
[329714783,1718598636150,-226.83513534,0.000201,2]
[329714785,1718598636197,-155.0,0.00020494,2]
[329714787,1718598636214,-963.80544357,0.00020495,2]
[329714788,1718598636229,-406.28,0.00020496,2]
[329714789,1718598636243,-1250.0,0.00021,2]
[329714790,1718598636255,-339.48,0.00021046,2]
[329714791,1718598636266,-480.16,0.00021324,2]
[329714792,1718598636277,-406.28,0.00021428,2]
[329714793,1718598636289,-35009.9324,0.00021474,2]
[329714794,1718598636306,-1981.7326,0.00021474,2]
[329714795,1718598636319,-1000.0,0.00021474,2]
[329714796,1718598636331,-375.10775281,0.00021474,2]
[329714797,1718598636351,-333.53734522,0.00021474,2]
[329714798,1718598636372,-216.4255137,0.00021564,2]
[329714799,1718598636429,-500.0,0.00021573,2]
[329714800,1718598636448,-400.08005358,0.00021573,2]
[329714801,1718598636460,-500.0,0.00021573,2]
[329714802,1718598636472,-500.0,0.00021573,2]
[329714803,1718598636498,-500.0,0.00021573,2]
[329714804,1718598636509,-500.0,0.00021573,2]
[329714805,1718598636533,-500.0,0.00021573,2]
[329714806,1718598636560,-500.0,0.00021573,2]
[329714807,1718598636580,-500.0,0.00021573,2]
[329714808,1718598636612,-500.0,0.00021573,2]
[329714809,1718598636634,-500.0,0.00021573,2]
[329714810,1718598636662,-500.0,0.00021574,2]
[329714811,1718598636694,-332319.44398083,0.00021574,2]
[329714812,1718598636717,-880.41326178,0.00021574,2]
[329714813,1718598636841,-360.74818862,0.00021574,2]
[329714814,1718598636854,-1821.78414193,0.00021574,2]
[329714815,1718598636869,-6349.31168983,0.00021574,2]
[329714816,1718598636885,-5314.0001,0.00021574,2]
[329714817,1718598636899,-134921.98469613,0.00021574,2]
[329714840,1718598639564,-339.13723125,0.00013088,2]
[329714841,1718598639576,-1437.86276875,0.00021574,2]
[329714842,1718598640453,-27144.8325623,0.00021574,2]
[329714843,1718598640624,-4207.32988912,0.00021574,2]
[329714845,1718598643605,-3258.19472346,0.00021574,2]
[329714846,1718598643624,-433.65476328,0.00021574,2]
[329714847,1718598643644,-358.8200025,0.00021574,2]
[329714848,1718598643678,-9894.76560632,0.00021574,2]
[329714849,1718598643909,-19688.03978527,0.00021574,2]
[329714851,1718598643933,-20288.85785676,0.00021574,2]
[329714852,1718598643953,-290.13912195,0.00021574,2]
[329714853,1718598643980,-1048.51520528,0.00021574,2]
[329714854,1718598644009,-181.20348077,0.00021574,2]
[329714855,1718598644056,-501.0,0.000219,2]
[329714856,1718598644071,-403.52,0.00021906,2]
[329714857,1718598644127,-565.44,0.00021918,2]
[329714858,1718598644147,-250.0,0.00021918,2]
[329714859,1718598644164,-181.27,0.00021918,2]
[329714860,1718598644196,-791.75453443,0.00022,2]
[329714861,1718598644222,-375.10775278,0.00022306,2]
[329714863,1718598644260,-406.28,0.00022359,2]
[329714864,1718598644308,-1300.0,0.00023,2]
[329714865,1718598644332,-12737.47719277,0.00023,2]
[329714866,1718598644344,-919.64137807,0.00023118,2]
[329714867,1718598644369,-375.10775278,0.00023138,2]
[329714868,1718598644379,-339.48,0.0002331,2]
[329714869,1718598644409,-375.10775278,0.0002397,2]
[329714870,1718598644422,-480.16,0.00024063,2]
[329714871,1718598644433,-2059.87583728,0.000241,2]
[329714872,1718598644473,-2236.19869591,0.00024239,2]
[329714873,1718598644484,-403.52,0.0002434,2]
[329714874,1718598644498,-484.1,0.00024384,2]
[329714875,1718598644513,-852.03,0.0002463,2]
[329714876,1718598644525,-418.01,0.0002463,2]
[329714877,1718598644536,-2323.61582518,0.00024798,2]
[329714878,1718598644547,-2323.61582513,0.00024798,2]
[329714879,1718598644560,-2323.61582513,0.00024798,2]
[329714880,1718598644579,-2323.61582513,0.00024798,2]
[329714881,1718598644607,-2323.61582513,0.00024798,2]
[329714882,1718598644618,-2323.61582513,0.00024798,2]
[329714883,1718598644632,-472.39132622,0.00024799,2]
[329714884,1718598644656,-472.39132615,0.00024799,2]
[329714885,1718598644679,-472.39132615,0.00024799,2]
[329714886,1718598644691,-472.39132615,0.00024799,2]
[329714887,1718598644709,-472.39132615,0.00024799,2]
[329714888,1718598644728,-472.39132615,0.00024799,2]
[329714889,1718598644740,-375.10775278,0.00024801,2]
[329714890,1718598644764,-2500.0,0.000249,2]
[329714891,1718598644780,-12954.35,0.0002498,2]
[329714892,1718598644791,-19604.75470635,0.00025,2]
[329714893,1718598644802,-174.5191,0.00025,2]
[329714894,1718598644828,-527.15,0.00025041,2]
[329714895,1718598644842,-150.0,0.00025041,2]
[329714896,1718598644856,-150.0,0.00025041,2]
[329714897,1718598644866,-150.0,0.00025041,2]
[329714898,1718598644883,-164.44,0.00025041,2]
[329714899,1718598644895,-423.27,0.00025041,2]
[329714900,1718598644906,-353.95,0.00025041,2]
[329714901,1718598644917,-165.79,0.00025239,2]
[329714902,1718598644931,-472.39132615,0.00025425,2]
[329714903,1718598644956,-2323.61582513,0.00025425,2]
[329714904,1718598644984,-178.77,0.00025573,2]
[329714905,1718598645069,-339.48,0.00025574,2]
[329714906,1718598645086,-375.10775278,0.00025633,2]
[329714907,1718598645121,-152.0,0.00025845,3]
[329714908,1718598645133,-472.39132615,0.00026083,2]
[329714909,1718598645144,-2323.61582513,0.00026083,2]
[329714910,1718598645154,-626.31808426,0.00026299,2]
[329714911,1718598645201,-375.10775278,0.00026465,2]
[329714912,1718598645228,-2535.4377,0.00026585,2]
[329714913,1718598645252,-502.0349,0.00026585,2]
[329714914,1718598645280,-11587.7103,0.00026585,2]
[329714915,1718598645303,-450.01240632,0.00026606,2]
[329714916,1718598645325,-1370.15706773,0.00026685,2]
[329714917,1718598645336,-1200.0,0.00026685,2]
[329714918,1718598645357,-57626.22077333,0.000267,2]
[329714919,1718598645369,-472.39132615,0.00026742,2]
[329714920,1718598645387,-2323.61582513,0.00026742,2]
[329714921,1718598645407,-3372.48575996,0.00026747,2]
[329714922,1718598645437,-3372.48575996,0.00026758,2]
[329714923,1718598645453,-3372.48575996,0.00026774,2]
[329714924,1718598645484,-403.52,0.00026774,2]
[329714925,1718598645511,-3372.48575996,0.00026778,2]
[329714926,1718598645532,-3372.48575996,0.00026783,2]
[329714927,1718598645557,-1017.0,0.000268,2]
[329714928,1718598645576,-383.42204089,0.00026841,2]
[329714929,1718598645592,-176.77024666,0.000269,2]
[329714930,1718598645610,-172.09388851,0.000269,2]
[329714931,1718598645625,-3099.87944232,0.000269,2]
[329714932,1718598645636,-460.69291176,0.000269,2]
[329714933,1718598645647,-3099.87944227,0.00026945,2]
[329714934,1718598645674,-6655.1396627,0.00026963,2]
[329714935,1718598645691,-3783.9676009,0.00026963,2]
[329714936,1718598645716,-5059.43447281,0.00026963,2]
[329714937,1718598645733,-337.374,0.00026963,2]
[329714938,1718598645750,-461.81999999,0.00026963,2]
[329714939,1718598645778,-11328.26866453,0.00026963,2]
[329714940,1718598645811,-1118.40429897,0.00026963,2]
[329714941,1718598645844,-1816.310871,0.00026963,2]
[329714942,1718598645868,-6482.36460083,0.00026963,2]
[329714943,1718598645931,-1191.88699385,0.00026963,2]
[329714944,1718598646006,-294.66500001,0.00026963,2]
[329714945,1718598646023,-8590.43286449,0.00026963,2]
[329714948,1718598647462,-515.5928677,0.00021474,2]
[329714949,1718598647480,-1984.4071323,0.00021474,2]
[329714950,1718598647504,-1000.0,0.000269,2]
[329714951,1718598647516,-100439.35044142,0.00026963,2]
[329714952,1718598647533,-2000.0,0.00026967,2]
[329714953,1718598647557,-200.0,0.00026967,2]
[329714955,1718598647578,-515.79541,0.00026967,2]
[329714956,1718598647616,-2628.96663729,0.00026982,2]
[329714957,1718598647639,-261.11778878,0.00026982,2]
[329714958,1718598647650,-3099.87944227,0.00026991,2]
[329714959,1718598647662,-2000.0,0.00027,2]
[329714960,1718598647690,-2000.0,0.00027,2]
[329714961,1718598647706,-2000.0,0.0002701,2]
[329714962,1718598647721,-3430.315023,0.0002701,2]
[329714963,1718598647736,-228.15004654,0.0002702,2]
[329714964,1718598647750,-2000.0,0.0002702,2]
[329714965,1718598647786,-500.0,0.00027023,2]
[329714966,1718598647797,-1000.0,0.00027023,2]
[329714967,1718598647808,-215.0,0.00027023,2]
[329714968,1718598647822,-2000.0,0.0002703,2]
[329714969,1718598647848,-3099.87944227,0.00027036,2]
[329714970,1718598647859,-2309.645623,0.0002704,2]
[329714971,1718598647887,-500.0,0.00027052,2]
[329714973,1718598647899,-3099.87944227,0.00027082,2]
[329714974,1718598647929,-1064.25,0.000271,2]
[329714975,1718598647976,-1894.59,0.000271,2]
[329714976,1718598647988,-1915.0,0.000271,2]
[329714977,1718598648022,-500.0,0.0002711,2]
[329714978,1718598648037,-200.0,0.0002711,2]
[329714979,1718598648073,-592.54291252,0.00027114,4]
[329714980,1718598648116,-269.98740562,0.00027122,2]
[329714981,1718598648141,-578.39593305,0.00027123,8]
[329714982,1718598648152,-500.0,0.00027123,8]
[329714983,1718598648172,-500.0,0.00027123,8]
[329714984,1718598648236,-500.0,0.00027123,8]
[329714985,1718598648252,-9454.04,0.00027123,8]
[329714986,1718598648263,-9454.04,0.00027123,8]
[329714987,1718598648276,-9454.04,0.00027123,8]
[329714988,1718598648324,-9454.04,0.00027123,8]
[329714989,1718598648356,-3099.87944227,0.00027127,2]
[329714990,1718598648377,-300.0,0.00027137,2]
[329714991,1718598648390,-500.0,0.0002714,8]
[329714992,1718598648417,-150.0,0.00027142,2]
[329714993,1718598648439,-150.0,0.00027158,2]
[329714994,1718598648450,-150.0,0.00027163,2]
[329714995,1718598648480,-500.0,0.00027168,2]
[329714996,1718598648508,-200.0,0.00027168,2]
[329714997,1718598648540,-3099.87944227,0.00027173,2]
[329714998,1718598648560,-150.0,0.00027173,2]
[329714999,1718598648575,-5000.0,0.0002718,3]
[329715000,1718598648598,-5329.10570055,0.0002718,2]
[329715001,1718598648616,-455.48396775,0.0002718,2]
[329715002,1718598648630,-206.31709051,0.00027197,2]
[329715003,1718598648652,-1529.56948735,0.000272,2]
[329715004,1718598648662,-566.35108032,0.00027207,6]
[329715005,1718598648673,-3099.87944227,0.00027218,2]
[329715006,1718598648712,-150.0,0.00027224,2]
[329715007,1718598648742,-150.0,0.00027236,2]
[329715008,1718598648757,-150.0,0.00027236,2]
[329715009,1718598648771,-5780.4182041,0.00027242,2]
[329715010,1718598648801,-3286.6200129,0.00027242,2]
[329715011,1718598648827,-15899.3354036,0.00027242,2]
[329715012,1718598648839,-1577.5831846,0.00027242,2]
[329715013,1718598648851,-101620.9199271,0.00027242,2]
[329715014,1718598648863,-151.0,0.00027242,7]
[329715015,1718598648874,-151.0,0.00027242,7]
[329715016,1718598648888,-151.0,0.00027242,7]
[329715017,1718598648899,-567.086075,0.00027242,7]
[329715018,1718598648918,-1338.8554982,0.0002725,2]
[329715019,1718598648956,-86243.1399536,0.0002725,2]
[329715020,1718598648971,-152.0,0.00027251,4]
[329715021,1718598648998,-151.0,0.00027256,5]
[329715022,1718598649079,-150.0,0.00027258,2]
[329715023,1718598649112,-4905.6967456,0.00027259,2]
[329715024,1718598649148,-2789.2724249,0.00027259,2]
[329715025,1718598649175,-9454.04,0.00027259,8]
[329715026,1718598649190,-151.0,0.0002726,7]
[329715027,1718598649217,-269.089825,0.0002726,7]
[329715028,1718598649275,-151.0,0.0002726,7]
[329715029,1718598649312,-187.8349,0.0002726,7]
[329715030,1718598649345,-708.642225,0.0002726,7]
[329715031,1718598649356,-708.642225,0.0002726,7]
[329715032,1718598649370,-155.45186,0.0002726,7]
[329715033,1718598649382,-308.607767,0.0002726,7]
[329715034,1718598649395,-159.712822,0.0002726,7]
[329715035,1718598649407,-308.607767,0.0002726,7]
[329715036,1718598649419,-159.712822,0.0002726,7]
[329715037,1718598649432,-151.0,0.0002726,7]
[329715038,1718598649450,-151.0,0.0002726,7]
[329715039,1718598649461,-151.0,0.0002726,7]
[329715040,1718598649477,-309.39695,0.0002726,7]
[329715041,1718598649491,-151.0,0.0002726,7]
[329715042,1718598649512,-151.0,0.0002726,7]
[329715043,1718598649528,-151.0,0.0002726,7]
[329715044,1718598649540,-309.39695,0.0002726,7]
[329715045,1718598649555,-151.0,0.0002726,7]
[329715046,1718598649570,-158.594015,0.0002726,7]
[329715047,1718598649585,-903.633161,0.0002726,7]
[329715048,1718598649598,-903.633161,0.0002726,7]
[329715049,1718598649620,-564.549292,0.0002726,7]
[329715050,1718598649635,-564.549292,0.0002726,7]
[329715051,1718598649650,-151.0,0.0002726,7]
[329715052,1718598649670,-151.0,0.0002726,7]
[329715053,1718598649684,-151.0,0.0002726,7]
[329715054,1718598649698,-4888.350622,0.0002726,7]
[329715055,1718598649726,-4888.350622,0.0002726,7]
[329715056,1718598649743,-151.0,0.0002726,7]
[329715057,1718598649765,-152.62601,0.0002726,7]
[329715058,1718598649795,-151.0,0.0002726,7]
[329715059,1718598649825,-151.0,0.0002726,7]
[329715060,1718598649848,-151.0,0.0002726,7]
[329715061,1718598649861,-230.214003,0.0002726,7]
[329715062,1718598649876,-151.0,0.0002726,7]
[329715063,1718598649893,-151.0,0.0002726,7]
[329715064,1718598649904,-9454.04,0.0002726,8]
[329715065,1718598649915,-800.0,0.0002726,2]
[329715066,1718598649926,-800.0,0.0002726,2]
[329715067,1718598649939,-4030.975287,0.00027261,2]
[329715068,1718598649953,-3156.2538285,0.00027261,2]
[329715069,1718598649968,-2281.5323699,0.00027261,2]
[329715070,1718598649979,-151.0,0.00027261,7]
[329715071,1718598649991,-2291.9248369,0.00027261,2]
[329715072,1718598650020,-151.0,0.00027261,7]
[329715073,1718598650032,-1794.5772489,0.00027261,2]
[329715074,1718598650045,-1297.2296609,0.00027261,2]
[329715075,1718598650068,-708.642225,0.00027261,7]
[329715076,1718598650086,-708.642225,0.00027261,7]
[329715077,1718598650103,-308.607767,0.00027261,7]
[329715078,1718598650122,-159.712822,0.00027261,7]
[329715079,1718598650163,-308.607767,0.00027261,7]
[329715080,1718598650177,-159.712822,0.00027261,7]
[329715081,1718598650189,-151.0,0.00027261,7]
[329715082,1718598650212,-13493.3693708,0.00027261,2]
[329715083,1718598650255,-11087.4033381,0.00027261,2]
[329715085,1718598650272,-8681.4373053,0.00027261,2]
[329715086,1718598650295,-151.0,0.00027261,7]
[329715087,1718598650306,-151.0,0.00027261,7]
[329715088,1718598650318,-309.39695,0.00027261,7]
[329715089,1718598650329,-151.0,0.00027261,7]
[329715090,1718598650343,-151.0,0.00027261,7]
[329715091,1718598650356,-151.0,0.00027261,7]
[329715092,1718598650387,-309.39695,0.00027261,7]
[329715093,1718598650404,-151.0,0.00027261,7]
[329715094,1718598650417,-903.633161,0.00027261,7]
[329715095,1718598650439,-903.633161,0.00027261,7]
[329715096,1718598650452,-564.549292,0.00027261,7]
[329715097,1718598650464,-564.549292,0.00027261,7]
[329715098,1718598650476,-151.0,0.00027261,7]
[329715099,1718598650486,-1100.1278118,0.00027261,2]
[329715100,1718598650510,-861.4001254,0.00027261,2]
[329715101,1718598650548,-622.672439,0.00027261,2]
[329715102,1718598650588,-227.225977,0.00027261,7]
[329715103,1718598650604,-267.534909,0.00027261,7]
[329715104,1718598650632,-4888.350622,0.00027261,7]
[329715105,1718598650648,-4888.350622,0.00027261,7]
[329715106,1718598650670,-151.0,0.00027261,7]
[329715107,1718598650688,-151.0,0.00027261,7]
[329715108,1718598650712,-151.0,0.00027261,7]
[329715109,1718598650726,-151.0,0.00027261,7]
[329715110,1718598650756,-70865.3599801,0.00027261,2]
[329715111,1718598650771,-55071.59334382,0.00027261,2]
[329715112,1718598651316,-415.98666268,0.00027261,2]
[329715113,1718598651351,-672.34332652,0.00027261,2]
[329715117,1718598993156,958.15228617,0.0001,2]
[329715127,1718599125903,38516.19078684,0.0001,2]
[329715128,1718599125960,299655.07,0.0001,2]
[329715129,1718599126312,-162.63655556,0.0001,2]
[329715130,1718599133240,-162.63655556,0.0001,2]
[329715131,1718599133868,-162.63655556,0.0001,2]
[329715132,1718599134392,-162.63655556,0.0001,2]
[329715133,1718599135019,-162.63655556,0.0001,2]
[329715134,1718599135494,-162.63655556,0.0001,2]
[329715135,1718599136163,-162.63655556,0.0001,2]
[329715136,1718599136898,-162.63655556,0.0001,2]
[329715137,1718599137504,-162.63655556,0.0001,2]
[329715138,1718599138211,-162.63655556,0.0001,2]
[329715139,1718599138846,-162.63655556,0.0001,2]
[329715140,1718599139406,-162.63655556,0.0001,2]
[329715141,1718599140074,-162.63655556,9.999e-05,2]
[329715142,1718599140737,-162.63655556,9.999e-05,2]
[329715143,1718599141278,-162.63655556,9.999e-05,2]
[329715144,1718599142024,-162.63655556,9.999e-05,2]
[329715145,1718599142615,-162.63655556,9.999e-05,2]
[329715146,1718599143448,-162.63655556,9.999e-05,2]
[329715147,1718599144014,-162.63655556,9.999e-05,2]
[329715148,1718599144659,-162.63655556,9.999e-05,2]
[329715149,1718599145568,-162.63655556,9.999e-05,2]
[329715150,1718599146399,-162.63655556,9.999e-05,2]
[329715151,1718599154505,-155.0,9.998e-05,2]
[329715152,1718599154549,-7.63655556,9.998e-05,2]
[329715153,1718599155154,-162.63655556,9.998e-05,2]
[329715154,1718599155819,-162.63655556,9.998e-05,2]
[329715155,1718599164367,150.42091901,5e-05,2]
[329715156,1718599164434,20.88692474,5e-05,2]
[329715157,1718599169881,-153.96526737,9.996e-05,2]
[329715158,1718599170433,-1.03473263,9.996e-05,2]
[329715159,1718599170481,-155.0,9.996e-05,2]
[329715160,1718599171256,-161.60182293,9.997e-05,2]
[329715161,1718599171901,-162.63655556,9.997e-05,2]
[329715162,1718599175530,1549.0,0.000273,60]
[329715163,1718599192637,-14.89885276,9.997e-05,2]
[329715164,1718599192676,-147.7377028,9.997e-05,2]
[329715165,1718599193633,-7.2622972,9.997e-05,2]
[329715166,1718599193674,-155.37425836,9.997e-05,2]
[329715167,1718599204330,-162.63655556,9.996e-05,2]
[329715168,1718599204845,-162.63655556,9.996e-05,2]
[329715169,1718599205406,-84.7906406,9.996e-05,2]
[329715170,1718599205450,-77.84591496,9.996e-05,2]
[329715171,1718599218291,150.0,7.499e-05,2]
[329715172,1718599218328,150.0,7.499e-05,2]
[329715173,1718599218362,150.0,7.499e-05,2]
[329715174,1718599218418,150.0,7.499e-05,2]
[329715175,1718599218455,150.0,7.499e-05,2]
[329715176,1718599218486,150.0,7.499e-05,2]
[329715177,1718599218532,150.0,7.499e-05,2]
[329715178,1718599218572,150.0,7.499e-05,2]
[329715179,1718599218620,150.0,7.499e-05,2]
[329715180,1718599218663,150.0,7.499e-05,2]
[329715181,1718599218706,54.7574659,7.499e-05,2]
[329715182,1718599233987,-162.63655556,9.995e-05,2]
[329715189,1718599769196,-762.21120122,9.684e-05,2]
[329715190,1718599769220,-2152.95219878,9.685e-05,2]
[329715214,1718599833175,-51.67905849,9.683e-05,2]
[329715217,1718599833204,-1950.47915625,9.683e-05,2]
[329715218,1718599833214,-607.26939779,9.684e-05,2]
[329715219,1718599833230,-258.40906512,9.684e-05,2]
[329715220,1718599833241,-155.0,9.684e-05,2]
[329715221,1718599833260,-300.0,9.888e-05,2]
[329715222,1718599833271,-909.27195293,9.89e-05,2]
[329715223,1718599833283,-97915.14519982,9.994e-05,2]
[329715224,1718599833879,-3762.84594164,9.994e-05,2]
[329715225,1718599833892,-6075.0,9.994e-05,2]
[329715226,1718599833905,-700.0,9.994e-05,2]
[329715227,1718599833934,-3225.18523691,9.994e-05,2]
[329715228,1718599834225,-31522.39112337,9.993e-05,2]
[329715229,1718599834240,-4003.68334147,9.993e-05,2]
[329715230,1718599834251,-500197.23254346,9.994e-05,2]
[329715231,1718599834294,-724.65,9.994e-05,2]
[329715268,1718599840701,-680.029749,9.635e-05,2]
[329715269,1718599840715,-79572.5223605,9.994e-05,2]
[329715270,1718599840735,-7780.69158794,9.995e-05,2]
[329715271,1718599840771,-12015.14338604,9.995e-05,2]
[329715272,1718599840813,-1583.36661395,9.996e-05,2]
[329715273,1718599840876,-527.3426415,9.996e-05,2]
[329715276,1718599840900,-1458.86928241,9.996e-05,2]
[329715282,1718599841157,-2444.94101825,9.996e-05,2]
[329715283,1718599841172,-2638.19491918,9.996e-05,2]
[329715284,1718599841189,-155.10829036,9.999e-05,2]
[329715285,1718599841206,-163.17,0.0001027,2]
[329715286,1718599841219,-155.28347792,0.00010499,2]
[329715287,1718599841230,-250.0,0.00012587,2]
[329715288,1718599841253,-200.0,0.00012696,2]
[329715289,1718599841268,-178.362395,0.000129,2]
[329715290,1718599841287,-43822.44544129,0.0001298,2]
[329715291,1718599841306,-3184.90002,0.0001298,2]
[329715292,1718599841322,-33486.91359963,0.0001298,2]
[329715293,1718599841341,-340.74,0.00013056,2]
[329715294,1718599841388,-400.7,0.00013424,2]
[329715295,1718599841415,-9305.59,0.00013424,2]
[329715296,1718599841475,-250.0,0.0001347,2]
[329715297,1718599841491,-2938.14,0.00013699,2]
[329715298,1718599841535,-363.84,0.00013794,2]
[329715299,1718599841560,-253.62978949,0.00013858,2]
[329715300,1718599841584,-401.9334,0.00013899,2]
[329715301,1718599841605,-48073.406,0.00013899,2]
[329715302,1718599841618,-395.69232991,0.000139,2]
[329715303,1718599841629,-4283.68806924,0.000139,2]
[329715304,1718599841651,-3409.87,0.00013924,2]
[329715305,1718599841671,-1250.47073675,0.00013998,2]
[329715306,1718599841684,-157.05978847,0.00013998,2]
[329715307,1718599841699,-227.65283455,0.00013998,2]
[329715308,1718599841732,-326.1176397,0.00013998,2]
[329715309,1718599841756,-410.91842943,0.00013998,2]
[329715310,1718599841782,-359.3314698,0.00013998,2]
[329715311,1718599841811,-1491.5398984,0.00013998,2]
[329715312,1718599841840,-477.40753119,0.00013998,2]
[329715313,1718599841857,-171.18902341,0.00013999,2]
[329715314,1718599841882,-727556.92804735,0.00014,2]
[329715315,1718599842038,-12236.20316524,0.00014,2]
[329715316,1718599842885,-162.63655556,9.685e-05,2]
[329715320,1718599843528,-162.63655556,9.685e-05,2]
[329715328,1718599844375,-26687.18912384,9.685e-05,2]
[329715329,1718599844392,-578.06080476,9.685e-05,2]
[329715330,1718599844469,-162.63655556,9.685e-05,2]
[329715331,1718599844644,-894.04882561,9.685e-05,2]
[329715332,1718599844672,-3325.0,9.685e-05,2]
[329715333,1718599844710,-1960.0,9.685e-05,2]
[329715334,1718599845248,-162.63655556,9.685e-05,2]
[329715335,1718599845271,-1704.87413917,9.685e-05,2]
[329715336,1718599845290,-287454.89882367,9.685e-05,2]
[329715337,1718599845460,-4223.88782054,9.685e-05,2]
[329715338,1718599845480,-1356.30670095,9.685e-05,2]
[329715339,1718599845518,-371.80306725,9.685e-05,2]
[329715340,1718599845783,-623.95690235,9.685e-05,2]
[329715341,1718599845800,-4003.50300215,9.685e-05,2]
[329715342,1718599845816,-643.75915963,9.685e-05,2]
[329715343,1718599845837,-213913.35156796,9.685e-05,2]
[329715344,1718599845860,-219.76389227,0.00013999,2]
[329715345,1718599845878,-972430.04306681,0.00014,2]